fUST/lending_fUST_20250708
["ID","MTS","AMOUNT","RATE_DAILY","PERIOD"]
[370365595,1751981466016,-2014.72,0.00020547,2]
[370365596,1751981466025,-1911.82,0.00020547,2]
[370365597,1751981466035,-460.0,0.00020547,2]
[370365598,1751981466045,-460.0,0.00020547,2]
[370365599,1751981466054,-460.0,0.00020547,2]
[370365600,1751981466063,-460.0,0.00020547,2]
[370365601,1751981466074,-608.19,0.00020547,2]
[370365602,1751981466084,-955.2,0.00020547,2]
[370365603,1751981466095,-460.0,0.00020547,2]
[370365604,1751981466106,-460.0,0.00020547,2]
[370365605,1751981466116,-547.96,0.00020547,2]
[370365606,1751981466125,-460.0,0.00020547,2]
[370365607,1751981466135,-460.0,0.00020547,2]
[370365608,1751981466144,-460.0,0.00020547,2]
[370365609,1751981466155,-1049.02,0.00020547,2]
[370365610,1751981466166,-460.0,0.00020547,2]
[370365611,1751981466175,-746.26,0.00020547,2]
[370365612,1751981466185,-460.0,0.00020547,2]
[370365613,1751981466194,-467.97,0.00020547,2]
[370365614,1751981466204,-460.0,0.00020547,2]
[370365615,1751981466213,-460.0,0.00020547,2]
[370365616,1751981466222,-905.71,0.00020547,2]
[370365617,1751981466232,-460.0,0.00020547,2]
[370365618,1751981466241,-460.0,0.00020547,2]
[370365619,1751981466251,-460.0,0.00020547,2]
[370365620,1751981466260,-460.0,0.00020547,2]
[370365621,1751981466269,-460.0,0.00020547,2]
[370365622,1751981466279,-460.0,0.00020547,2]
[370365623,1751981466290,-850.76,0.00020547,2]
[370365624,1751981466303,-460.0,0.00020547,2]
[370365625,1751981466313,-460.0,0.00020547,2]
[370365626,1751981466322,-1070.05,0.00020547,2]
[370365627,1751981466332,-460.0,0.00020547,2]
[370365628,1751981466341,-460.0,0.00020547,2]
[370365629,1751981466351,-1572.06,0.00020547,2]
[370365630,1751981466361,-621.79,0.00020547,2]
[370365631,1751981466371,-693.45,0.00020547,2]
[370365632,1751981466381,-841.07,0.00020547,2]
[370365633,1751981466391,-460.0,0.00020547,2]
[370365634,1751981466401,-502.79659212,0.00020547,2]
[370365635,1751981466410,-460.0,0.00020547,2]
[370365636,1751981466419,-460.0,0.00020547,2]
[370365637,1751981466429,-5517.82,0.00020547,2]
[370365638,1751981466438,-460.0,0.00020547,2]
[370365639,1751981466448,-460.0,0.00020547,2]
[370365640,1751981466457,-460.0,0.00020547,2]
[370365641,1751981466466,-1821.56,0.00020547,2]
[370365642,1751981466476,-13455.79,0.00020547,2]
[370365643,1751981466486,-460.0,0.00020547,2]
[370365644,1751981466495,-460.0,0.00020547,2]
[370365645,1751981466506,-5439.09,0.00020547,2]
[370365646,1751981466517,-1036.04,0.00020547,2]
[370365647,1751981466527,-765.94,0.00020547,2]
[370365648,1751981466539,-460.0,0.00020547,2]
[370365649,1751981466549,-1757.46,0.00020547,2]
[370365650,1751981466558,-1867.66,0.00020547,2]
[370365651,1751981466568,-460.0,0.00020547,2]
[370365652,1751981466577,-460.0,0.00020547,2]
[370365653,1751981466587,-3385.63,0.00020547,2]
[370365654,1751981466596,-273.05816031,0.00020547,2]
[370365655,1751981466606,-460.0,0.00020547,2]
[370365656,1751981466615,-460.0,0.00020547,2]
[370365657,1751981466625,-991.97,0.00020547,2]
[370365658,1751981466634,-460.0,0.00020547,2]
[370365659,1751981466644,-460.0,0.00020547,2]
[370365660,1751981466653,-898.5,0.00020547,2]
[370365661,1751981466662,-460.0,0.00020547,2]
[370365662,1751981466672,-460.0,0.00020547,2]
[370365663,1751981466681,-560.13,0.00020547,2]
[370365664,1751981466690,-460.0,0.00020547,2]
[370365665,1751981466699,-460.0,0.00020547,2]
[370365666,1751981466709,-4924.84,0.00020547,2]
[370365667,1751981466719,-4461.65,0.00020547,2]
[370365668,1751981466728,-559.75,0.00020547,2]
[370365669,1751981466738,-3873.62,0.00020547,2]
[370365670,1751981466747,-460.0,0.00020547,2]
[370365671,1751981466757,-460.0,0.00020547,2]
[370365672,1751981466767,-460.0,0.00020547,2]
[370365673,1751981466778,-602.16,0.00020547,2]
[370365674,1751981466793,-460.0,0.00020547,2]
[370365675,1751981466802,-2351.87,0.00020547,2]
[370365676,1751981466811,-900.22,0.00020547,2]
[370365677,1751981466820,-460.0,0.00020547,2]
[370365678,1751981466829,-460.0,0.00020547,2]
[370365679,1751981466838,-460.0,0.00020547,2]
[370365680,1751981466848,-460.0,0.00020547,2]
[370365681,1751981466857,-1341.38,0.00020547,2]
[370365682,1751981466866,-460.0,0.00020547,2]
[370365683,1751981466876,-460.0,0.00020547,2]
[370365684,1751981466885,-505.9,0.00020547,2]
[370365685,1751981466895,-460.0,0.00020547,2]
[370365686,1751981466906,-460.0,0.00020547,2]
[370365687,1751981466915,-1267.68,0.00020547,2]
[370365688,1751981466924,-1821.03,0.00020547,2]
[370365689,1751981466933,-460.0,0.00020547,2]
[370365690,1751981466943,-2845.28,0.00020547,2]
[370365691,1751981466953,-2121.78,0.00020547,2]
[370365692,1751981466963,-460.0,0.00020547,2]
[370365693,1751981466972,-11303.12,0.00020547,2]
[370365694,1751981466984,-3011.57,0.00020547,2]
[370365695,1751981466994,-460.0,0.00020547,2]
[370365696,1751981467004,-294.56910948,0.00020547,2]
[370365697,1751981467014,-460.0,0.00020547,2]
[370365698,1751981467025,-460.0,0.00020547,2]
[370365699,1751981467037,-888.63,0.00020547,2]
[370365700,1751981467046,-460.0,0.00020547,2]
[370365701,1751981467055,-460.0,0.00020547,2]
[370365702,1751981467065,-460.0,0.00020547,2]
[370365703,1751981467074,-460.0,0.00020547,2]
[370365704,1751981467083,-460.0,0.00020547,2]
[370365705,1751981467093,-460.0,0.00020547,2]
[370365706,1751981467102,-749.06,0.00020547,2]
[370365707,1751981467111,-460.0,0.00020547,2]
[370365708,1751981467120,-1278.14,0.00020547,2]
[370365709,1751981467130,-1955.19,0.00020547,2]
[370365710,1751981467140,-526.77,0.00020547,2]
[370365711,1751981467149,-460.0,0.00020547,2]
[370365712,1751981467158,-460.0,0.00020547,2]
[370365713,1751981467167,-6484.75,0.00020547,2]
[370365714,1751981467177,-460.0,0.00020547,2]
[370365715,1751981467186,-500.0,0.00020547,2]
[370365716,1751981467195,-1174.49,0.00020547,2]
[370365717,1751981467205,-460.0,0.00020547,2]
[370365718,1751981467214,-519.16,0.00020547,2]
[370365719,1751981467224,-2194.12,0.00020547,2]
[370365720,1751981467234,-460.0,0.00020547,2]
[370365721,1751981467243,-460.0,0.00020547,2]
[370365722,1751981467253,-531.38,0.00020547,2]
[370365723,1751981467262,-6706.7,0.00020547,2]
[370365724,1751981467272,-460.0,0.00020547,2]
[370365725,1751981467282,-460.0,0.00020547,2]
[370365726,1751981467292,-1170.12,0.00020547,2]
[370365727,1751981467305,-1201.64,0.00020547,2]
[370365728,1751981467314,-485.05,0.00020547,2]
[370365729,1751981467324,-460.0,0.00020547,2]
[370365730,1751981467334,-9417.42,0.00020547,2]
[370365731,1751981467345,-460.0,0.00020547,2]
[370365732,1751981467354,-3183.99,0.00020547,2]
[370365733,1751981467364,-460.0,0.00020547,2]
[370365734,1751981467373,-615.44,0.00020547,2]
[370365735,1751981467382,-532.41,0.00020547,2]
[370365736,1751981467392,-460.0,0.00020547,2]
[370365737,1751981467402,-1462.65,0.00020547,2]
[370365738,1751981467411,-460.0,0.00020547,2]
[370365739,1751981467421,-1323.76,0.00020547,2]
[370365740,1751981467431,-460.0,0.00020547,2]
[370365741,1751981467441,-704.81,0.00020547,2]
[370365742,1751981467450,-460.0,0.00020547,2]
[370365743,1751981467460,-5161.92,0.00020547,2]
[370365744,1751981467471,-460.0,0.00020547,2]
[370365745,1751981467480,-460.0,0.00020547,2]
[370365746,1751981467489,-479.18,0.00020547,2]
[370365747,1751981467498,-460.0,0.00020547,2]
[370365748,1751981467507,-520.04,0.00020547,2]
[370365749,1751981467517,-460.0,0.00020547,2]
[370365750,1751981467526,-460.0,0.00020547,2]
[370365751,1751981467537,-1434.35,0.00020547,2]
[370365752,1751981467547,-5953.51,0.00020547,2]
[370365753,1751981467556,-460.0,0.00020547,2]
[370365754,1751981467565,-460.0,0.00020547,2]
[370365755,1751981467575,-460.0,0.00020547,2]
[370365756,1751981467585,-841.4,0.00020547,2]
[370365757,1751981467594,-2917.72,0.00020547,2]
[370365758,1751981467727,-460.0,0.00020547,2]
[370365759,1751981467738,-2157.33,0.00020547,2]
[370365760,1751981467748,-3295.55,0.00020547,2]
[370365761,1751981467758,-460.0,0.00020547,2]
[370365762,1751981467767,-1045.57,0.00020547,2]
[370365763,1751981467777,-460.0,0.00020547,2]
[370365764,1751981467788,-460.0,0.00020547,2]
[370365765,1751981467797,-1048.98,0.00020547,2]
[370365766,1751981467806,-730.08,0.00020547,2]
[370365767,1751981467815,-168.0,0.00020558,2]
[370365768,1751981467825,-223.76,0.0002058,2]
[370365769,1751981467834,-5461.15789496,0.0002059,3]
[370365770,1751981467843,-4774.09,0.000206,2]
[370365771,1751981467853,-168.0,0.00020612,2]
[370365772,1751981467862,-2030.76176946,0.00020639,2]
[370365773,1751981467872,-600.0,0.000207,2]
[370365774,1751981467881,-271.9,0.00020709,4]
[370365775,1751981467890,-300.0,0.00020709,2]
[370365776,1751981467900,-420.0,0.00020709,2]
[370365777,1751981467909,-300.0,0.00020709,2]
[370365778,1751981467919,-22946.66876487,0.0002071,2]
[370365779,1751981467928,-25000.0,0.00020711,2]
[370365780,1751981467937,-2000.0,0.00020716,2]
[370365781,1751981467946,-2003.63180509,0.00020716,2]
[370365782,1751981467954,-2000.0,0.00020716,2]
[370365783,1751981467964,-2000.0,0.00020716,2]
[370365784,1751981467973,-2000.0,0.00020716,2]
[370365785,1751981467983,-478.72185029,0.00020716,2]
[370365786,1751981467992,-2000.0,0.00020716,2]
[370365787,1751981468001,-168.0,0.00020734,2]
[370365788,1751981468010,-2000.0,0.000208,2]
[370365789,1751981468019,-1490.0,0.0002081,2]
[370365790,1751981468029,-845.81101972,0.00020816,2]
[370365791,1751981468040,-2000.0,0.00020816,2]
[370365792,1751981468050,-612.83981256,0.00020816,2]
[370365793,1751981468060,-2000.0,0.00020816,2]
[370365794,1751981468069,-2000.0,0.00020816,2]
[370365795,1751981468078,-1333.66009058,0.00020816,2]
[370365796,1751981468088,-758.34330155,0.00020816,2]
[370365797,1751981468097,-2400.0,0.00020816,2]
[370365798,1751981468107,-2000.0,0.00020816,2]
[370365799,1751981468117,-1502.16744464,0.00020816,2]
[370365800,1751981468126,-2000.0,0.00020816,2]
[370365801,1751981468136,-2000.0,0.00020816,2]
[370365802,1751981468145,-2000.0,0.00020816,2]
[370365803,1751981468155,-1194.23336538,0.00020816,2]
[370365804,1751981468164,-2000.0,0.00020816,2]
[370365805,1751981468174,-2000.0,0.00020816,2]
[370365806,1751981468183,-2000.0,0.00020816,2]
[370365807,1751981468192,-500.0,0.0002082,10]
[370365808,1751981468202,-501.12621999,0.0002082,10]
[370365809,1751981468211,-200.0,0.0002082,2]
[370365810,1751981468220,-515.5869689,0.00020821,2]
[370365811,1751981468229,-460.0,0.00020821,2]
[370365812,1751981468239,-459.0,0.00020821,2]
[370365813,1751981468248,-460.0,0.00020821,2]
[370365814,1751981468258,-441.71708509,0.00020821,2]
[370365815,1751981468267,-460.0,0.00020821,2]
[370365816,1751981468276,-460.0,0.00020821,2]
[370365817,1751981468286,-460.0,0.00020821,2]
[370365818,1751981468296,-410.96,0.00020821,2]
[370365819,1751981468308,-460.0,0.00020821,2]
[370365820,1751981468319,-529.8,0.00020821,2]
[370365821,1751981468328,-460.0,0.00020821,2]
[370365822,1751981468337,-460.0,0.00020821,2]
[370365823,1751981468346,-460.0,0.00020821,2]
[370365824,1751981468356,-460.0,0.00020821,2]
[370365825,1751981468365,-460.0,0.00020821,2]
[370365826,1751981468375,-460.0,0.00020821,2]
[370365827,1751981468385,-508.39,0.00020821,2]
[370365828,1751981468395,-460.0,0.00020821,2]
[370365829,1751981468404,-460.0,0.00020821,2]
[370365830,1751981468414,-444.86225772,0.00020821,2]
[370365831,1751981468423,-460.0,0.00020821,2]
[370365832,1751981468433,-468.97747197,0.00020821,2]
[370365833,1751981468442,-460.0,0.00020821,2]
[370365834,1751981468452,-465.54,0.00020821,2]
[370365835,1751981468461,-460.0,0.00020821,2]
[370365836,1751981468470,-569.19,0.00020821,2]
[370365837,1751981468479,-460.0,0.00020821,2]
[370365838,1751981468488,-460.0,0.00020821,2]
[370365839,1751981468497,-460.0,0.00020821,2]
[370365840,1751981468506,-460.0,0.00020821,2]
[370365841,1751981468516,-460.0,0.00020821,2]
[370365842,1751981468526,-460.0,0.00020821,2]
[370365843,1751981468538,-713.88,0.00020821,2]
[370365844,1751981468547,-460.0,0.00020821,2]
[370365845,1751981468558,-460.0,0.00020821,2]
[370365846,1751981468568,-460.0,0.00020821,2]
[370365847,1751981468578,-460.0,0.00020821,2]
[370365848,1751981468587,-464.6,0.00020821,2]
[370365849,1751981468598,-758.18,0.00020821,2]
[370365850,1751981468607,-460.0,0.00020821,2]
[370365851,1751981468616,-460.0,0.00020821,2]
[370365852,1751981468626,-460.0,0.00020821,2]
[370365853,1751981468636,-528.0972067,0.00020821,2]
[370365854,1751981468646,-460.0,0.00020821,2]
[370365855,1751981468655,-460.0,0.00020821,2]
[370365856,1751981468664,-959.15,0.00020821,2]
[370365857,1751981468673,-460.0,0.00020821,2]
[370365858,1751981468683,-460.0,0.00020821,2]
[370365859,1751981468691,-460.0,0.00020821,2]
[370365860,1751981468700,-680.29,0.00020821,2]
[370365861,1751981468711,-460.0,0.00020821,2]
[370365862,1751981468721,-460.0,0.00020821,2]
[370365863,1751981468732,-748.67,0.00020821,2]
[370365864,1751981468742,-567.15,0.00020821,2]
[370365865,1751981468751,-460.0,0.00020821,2]
[370365866,1751981468761,-460.0,0.00020821,2]
[370365867,1751981468771,-460.0,0.00020821,2]
[370365868,1751981468780,-460.0,0.00020821,2]
[370365869,1751981468791,-460.0,0.00020821,2]
[370365870,1751981468800,-460.0,0.00020821,2]
[370365871,1751981468809,-498.51,0.00020821,2]
[370365872,1751981468818,-460.0,0.00020821,2]
[370365873,1751981468827,-552.98,0.00020821,2]
[370365874,1751981468836,-460.0,0.00020821,2]
[370365875,1751981468846,-460.0,0.00020821,2]
[370365876,1751981468855,-460.0,0.00020821,2]
[370365877,1751981468865,-460.0,0.00020821,2]
[370365878,1751981468874,-460.0,0.00020821,2]
[370365879,1751981468883,-609.74,0.00020821,2]
[370365880,1751981468893,-460.0,0.00020821,2]
[370365881,1751981468902,-1124.92,0.00020821,2]
[370365882,1751981468911,-460.0,0.00020821,2]
[370365883,1751981468920,-460.0,0.00020821,2]
[370365884,1751981468929,-1744.91,0.00020821,2]
[370365885,1751981468939,-1208.23,0.00020821,2]
[370365886,1751981468948,-460.0,0.00020821,2]
[370365887,1751981468958,-482.14,0.00020821,2]
[370365888,1751981468967,-460.0,0.00020821,2]
[370365889,1751981468976,-460.0,0.00020821,2]
[370365890,1751981468985,-460.0,0.00020821,2]
[370365891,1751981468994,-460.0,0.00020821,2]
[370365892,1751981469004,-460.0,0.00020821,2]
[370365893,1751981469013,-1511.21,0.00020821,2]
[370365894,1751981469022,-460.0,0.00020821,2]
[370365895,1751981469032,-460.0,0.00020821,2]
[370365896,1751981469042,-794.32,0.00020821,2]
[370365897,1751981469051,-460.0,0.00020821,2]
[370365898,1751981469060,-460.0,0.00020821,2]
[370365899,1751981469069,-460.0,0.00020821,2]
[370365900,1751981469078,-460.0,0.00020821,2]
[370365901,1751981469087,-519.1,0.00020821,2]
[370365902,1751981469096,-460.0,0.00020821,2]
[370365903,1751981469105,-460.0,0.00020821,2]
[370365904,1751981469114,-460.0,0.00020821,2]
[370365905,1751981469123,-493.07,0.00020821,2]
[370365906,1751981469133,-460.0,0.00020821,2]
[370365907,1751981469142,-460.0,0.00020821,2]
[370365908,1751981469151,-460.0,0.00020821,2]
[370365909,1751981469161,-771.38,0.00020821,2]
[370365910,1751981469170,-460.0,0.00020821,2]
[370365911,1751981469179,-460.0,0.00020821,2]
[370365912,1751981469188,-460.0,0.00020821,2]
[370365913,1751981469198,-460.0,0.00020821,2]
[370365914,1751981469208,-2014.72,0.00020821,2]
[370365915,1751981469217,-1911.82,0.00020821,2]
[370365916,1751981469227,-460.0,0.00020821,2]
[370365917,1751981469236,-460.0,0.00020821,2]
[370365918,1751981469245,-460.0,0.00020821,2]
[370365919,1751981469255,-460.0,0.00020821,2]
[370365920,1751981469264,-608.19,0.00020821,2]
[370365921,1751981469274,-955.2,0.00020821,2]
[370365922,1751981469283,-460.0,0.00020821,2]
[370365923,1751981469295,-460.0,0.00020821,2]
[370365924,1751981469308,-460.0,0.00020821,2]
[370365925,1751981469317,-547.96,0.00020821,2]
[370365926,1751981469327,-460.0,0.00020821,2]
[370365927,1751981469336,-460.0,0.00020821,2]
[370365928,1751981469347,-1049.02,0.00020821,2]
[370365929,1751981469357,-460.0,0.00020821,2]
[370365930,1751981469366,-746.26,0.00020821,2]
[370365931,1751981469377,-498.03652292,0.00020821,2]
[370365932,1751981469386,-467.97,0.00020821,2]
[370365933,1751981469396,-460.0,0.00020821,2]
[370365934,1751981469405,-905.71,0.00020821,2]
[370365935,1751981469415,-460.0,0.00020821,2]
[370365936,1751981469424,-211.09210842,0.00020821,2]
[370365937,1751981469433,-460.0,0.00020821,2]
[370365938,1751981469442,-460.0,0.00020821,2]
[370365939,1751981469452,-460.0,0.00020821,2]
[370365940,1751981469461,-850.76,0.00020821,2]
[370365941,1751981469470,-460.0,0.00020821,2]
[370365942,1751981469479,-460.0,0.00020821,2]
[370365943,1751981469489,-460.0,0.00020821,2]
[370365944,1751981469498,-1070.05,0.00020821,2]
[370365945,1751981469507,-460.0,0.00020821,2]
[370365946,1751981469517,-1572.06,0.00020821,2]
[370365947,1751981469526,-621.79,0.00020821,2]
[370365948,1751981469535,-693.45,0.00020821,2]
[370365949,1751981469550,-841.07,0.00020821,2]
[370365950,1751981469559,-460.0,0.00020821,2]
[370365951,1751981469569,-460.0,0.00020821,2]
[370365952,1751981469578,-460.0,0.00020821,2]
[370365953,1751981469588,-5517.82,0.00020821,2]
[370365954,1751981469598,-460.0,0.00020821,2]
[370365955,1751981469607,-460.0,0.00020821,2]
[370365956,1751981469617,-1821.56,0.00020821,2]
[370365957,1751981469627,-13455.79,0.00020821,2]
[370365958,1751981469636,-460.0,0.00020821,2]
[370365959,1751981469647,-460.0,0.00020821,2]
[370365960,1751981469657,-5439.09,0.00020821,2]
[370365961,1751981469667,-1036.04,0.00020821,2]
[370365962,1751981469676,-765.94,0.00020821,2]
[370365963,1751981469800,-460.0,0.00020821,2]
[370365964,1751981469811,-1757.46,0.00020821,2]
[370365965,1751981469821,-1867.66,0.00020821,2]
[370365966,1751981469831,-213.83058712,0.00020821,2]
[370365967,1751981469843,-460.0,0.00020821,2]
[370365968,1751981469853,-3385.63,0.00020821,2]
[370365969,1751981469866,-460.0,0.00020821,2]
[370365970,1751981469877,-460.0,0.00020821,2]
[370365971,1751981469889,-991.97,0.00020821,2]
[370365972,1751981469906,-460.0,0.00020821,2]
[370365973,1751981469916,-460.0,0.00020821,2]
[370365974,1751981469925,-898.5,0.00020821,2]
[370365975,1751981469935,-460.0,0.00020821,2]
[370365976,1751981469944,-460.0,0.00020821,2]
[370365977,1751981469953,-560.13,0.00020821,2]
[370365978,1751981469963,-460.0,0.00020821,2]
[370365979,1751981469973,-460.0,0.00020821,2]
[370365980,1751981469983,-4924.84,0.00020821,2]
[370365981,1751981469992,-4461.65,0.00020821,2]
[370365982,1751981470001,-559.75,0.00020821,2]
[370365983,1751981470011,-3873.62,0.00020821,2]
[370365984,1751981470020,-460.0,0.00020821,2]
[370365985,1751981470030,-460.0,0.00020821,2]
[370365986,1751981470040,-460.0,0.00020821,2]
[370365987,1751981470050,-602.16,0.00020821,2]
[370365988,1751981470060,-460.0,0.00020821,2]
[370365989,1751981470069,-2351.87,0.00020821,2]
[370365990,1751981470079,-900.22,0.00020821,2]
[370365991,1751981470089,-460.0,0.00020821,2]
[370365992,1751981470099,-460.0,0.00020821,2]
[370365993,1751981470109,-460.0,0.00020821,2]
[370365994,1751981470118,-562.16,0.00020821,2]
[370365995,1751981470128,-1341.38,0.00020821,2]
[370365996,1751981470138,-460.0,0.00020821,2]
[370365997,1751981470147,-460.0,0.00020821,2]
[370365998,1751981470156,-505.9,0.00020821,2]
[370365999,1751981470166,-460.0,0.00020821,2]
[370366000,1751981470175,-460.0,0.00020821,2]
[370366001,1751981470185,-1267.68,0.00020821,2]
[370366002,1751981470194,-1821.03,0.00020821,2]
[370366003,1751981470204,-516.25,0.00020821,2]
[370366004,1751981470213,-2121.78,0.00020821,2]
[370366005,1751981470222,-460.0,0.00020821,2]
[370366006,1751981470232,-2845.28,0.00020821,2]
[370366007,1751981470242,-11303.12,0.00020821,2]
[370366008,1751981470252,-3011.57,0.00020821,2]
[370366009,1751981470262,-460.0,0.00020821,2]
[370366010,1751981470272,-460.0,0.00020821,2]
[370366011,1751981470282,-562.50143048,0.00020821,2]
[370366012,1751981470296,-888.63,0.00020821,2]
[370366013,1751981470311,-460.0,0.00020821,2]
[370366014,1751981470321,-460.0,0.00020821,2]
[370366015,1751981470331,-460.0,0.00020821,2]
[370366016,1751981470341,-460.0,0.00020821,2]
[370366017,1751981470351,-460.0,0.00020821,2]
[370366018,1751981470360,-460.0,0.00020821,2]
[370366019,1751981470370,-749.06,0.00020821,2]
[370366020,1751981470380,-548.70878155,0.00020821,2]
[370366021,1751981470389,-1278.14,0.00020821,2]
[370366022,1751981470399,-1955.19,0.00020821,2]
[370366023,1751981470408,-526.77,0.00020821,2]
[370366024,1751981470418,-460.0,0.00020821,2]
[370366025,1751981470428,-460.0,0.00020821,2]
[370366026,1751981470438,-6484.75,0.00020821,2]
[370366027,1751981470447,-460.0,0.00020821,2]
[370366028,1751981470457,-500.0,0.00020821,2]
[370366029,1751981470466,-1174.49,0.00020821,2]
[370366030,1751981470476,-460.0,0.00020821,2]
[370366031,1751981470486,-519.16,0.00020821,2]
[370366032,1751981470495,-2194.12,0.00020821,2]
[370366033,1751981470504,-460.0,0.00020821,2]
[370366034,1751981470514,-460.0,0.00020821,2]
[370366035,1751981470523,-531.38,0.00020821,2]
[370366036,1751981470533,-6706.7,0.00020821,2]
[370366037,1751981470545,-460.0,0.00020821,2]
[370366038,1751981470554,-460.0,0.00020821,2]
[370366039,1751981470564,-1201.64,0.00020821,2]
[370366040,1751981470573,-1170.12,0.00020821,2]
[370366041,1751981470582,-485.05,0.00020821,2]
[370366042,1751981470592,-460.0,0.00020821,2]
[370366043,1751981470601,-9417.42,0.00020821,2]
[370366044,1751981470611,-460.0,0.00020821,2]
[370366045,1751981470620,-3183.99,0.00020821,2]
[370366046,1751981470629,-460.0,0.00020821,2]
[370366047,1751981470639,-615.44,0.00020821,2]
[370366048,1751981470648,-532.41,0.00020821,2]
[370366049,1751981470658,-460.0,0.00020821,2]
[370366050,1751981470667,-1462.65,0.00020821,2]
[370366051,1751981470677,-460.0,0.00020821,2]
[370366052,1751981470686,-1323.76,0.00020821,2]
[370366053,1751981470696,-460.0,0.00020821,2]
[370366054,1751981470706,-704.81,0.00020821,2]
[370366055,1751981470715,-460.0,0.00020821,2]
[370366056,1751981470724,-5161.92,0.00020821,2]
[370366057,1751981470734,-460.0,0.00020821,2]
[370366058,1751981470743,-460.0,0.00020821,2]
[370366059,1751981470753,-479.18,0.00020821,2]
[370366060,1751981470763,-460.0,0.00020821,2]
[370366061,1751981470772,-520.04,0.00020821,2]
[370366062,1751981470783,-460.0,0.00020821,2]
[370366063,1751981470794,-460.0,0.00020821,2]
[370366064,1751981470804,-1434.35,0.00020821,2]
[370366065,1751981470813,-5953.51,0.00020821,2]
[370366066,1751981470822,-460.0,0.00020821,2]
[370366067,1751981470831,-460.0,0.00020821,2]
[370366068,1751981470840,-460.0,0.00020821,2]
[370366069,1751981470849,-841.4,0.00020821,2]
[370366070,1751981470858,-2917.72,0.00020821,2]
[370366071,1751981470868,-2157.33,0.00020821,2]
[370366072,1751981470877,-3295.55,0.00020821,2]
[370366073,1751981470886,-460.0,0.00020821,2]
[370366074,1751981470895,-1045.57,0.00020821,2]
[370366075,1751981470904,-460.0,0.00020821,2]
[370366076,1751981470913,-460.0,0.00020821,2]
[370366077,1751981470922,-1048.98,0.00020821,2]
[370366078,1751981470931,-730.08,0.00020821,2]
[370366079,1751981470940,-5461.15789496,0.00020831,4]
[370366080,1751981470949,-1500.0,0.00020868,2]
[370366081,1751981470959,-1500.0,0.00020868,2]
[370366082,1751981470968,-588.82061233,0.00020868,2]
[370366083,1751981470977,-1500.0,0.00020868,2]
[370366084,1751981470986,-1502.8504181,0.00020868,2]
[370366085,1751981470996,-366.56020996,0.00020868,2]
[370366086,1751981471005,-206.0,0.0002088,2]
[370366087,1751981471014,-160.930942,0.00020899,2]
[370366088,1751981471023,-600.0,0.00020913,2]
[370366089,1751981471032,-271.9,0.00020924,4]
[370366090,1751981471043,-150.0,0.00020972,2]
[370366091,1751981471052,-500.0,0.00021,2]
[370366092,1751981471061,-506.24,0.00021,2]
[370366093,1751981471070,-509.740667,0.00021,2]
[370366094,1751981471079,-10000.0,0.00021,2]